[Event "Slovakian ECo-C Extraliga 2024-25"]
[Site "Slovakia"]
[Date "2025.02.15"]
[Round "5.5"]
[White "Zambor, Norbert"]
[Black "Durana, Jonas"]
[Result "1-0"]
[Annotator "ChessBase"]
[ECO "B90"]
[WhiteElo "2243"]
[BlackElo "1968"]
[PlyCount "95"]
[EventDate "2024.09.12"]
[EventType "team-tourn"]
[EventCountry "SVK"]
[SourceTitle "playchess.com"]
[Source "ChessBase"]
[SourceQuality "1"]
[TimeControl "5400+30"]

1. e4 {[%emt 0:00:04]} c5 {[%emt 0:00:04]} 2. Nf3 {[%emt 0:00:10]} d6 {[%emt 0:00:05]} 3. d4 {[%emt 0:00:05]} cxd4 {[%emt 0:00:04]} 4. Nxd4 {[%emt 0:00:09]} Nf6 {[%emt 0:00:03]} 5. Nc3 {[%emt 0:00:09]} a6 {[%emt 0:00:04]} 6. f3 {[%emt 0:00:07]} e5 {[%emt 0:00:03]} 7. Nb3 {[%emt 0:00:07]} Be7 {[%emt 0:00:05]} 8. Be3 {[%emt 0:00:09]} Be6 {[%emt 0:00:04]} 9. Qd2 {[%emt 0:00:38]} h5 {[%emt 0:00:06]} 10. Nd5 {[%emt 0:02:53]} Nxd5 {[%emt 0:12:27]} 11. exd5 {[%emt 0:00:08]} Bf5 {[%emt 0:00:30]} 12. Be2 {[%emt 0:00:45]} Nd7 {[%emt 0:03:18]} 13. O-O {[%emt 0:08:06]} Nf6 {[%emt 0:38:25]} 14. c4 {[%emt 0:08:11]} O-O {[%emt 0:02:48]} 15. Na5 {[%emt 0:07:26]} Qd7 {[%emt 0:03:41]} 16. b4 {[%emt 0:04:33]} Rac8 {[%emt 0:08:17]} 17. a4 {[%emt 0:04:37]} e4 {[%emt 0:01:44]} 18. f4 {[%emt 0:02:14]} Bg4 {[%emt 0:00:35]} 19. Rfc1 {[%emt 0:22:48]} Bd8 {[%emt 0:12:50]} 20. Bf1 {[%emt 0:03:58]} h4 {[%emt 0:02:53]} 21. h3 {[%emt 0:02:34]} Bf5 {[%emt 0:00:04]} 22. Be2 {[%emt 0:03:01]} Bg6 {[%emt 0:02:10]} 23. Qd1 {[%emt 0:00:59]} Re8 {[%emt 0:06:37]} 24. Nb3 {[%emt 0:00:59]} Qf5 {[%emt 0:04:02]} 25. Nd4 {[%emt 0:01:03]} Qd7 {[%emt 0:00:20]} 26. a5 {[%emt 0:00:52]} Kh7 {[%emt 0:01:01]} 27. Qe1 {[%emt 0:02:29]} Ng8 {[%emt 0:00:39]} 28. f5 {[%emt 0:00:12]} Bxf5 {[%emt 0:00:08]} 29. Nxf5 {[%emt 0:00:08]} Qxf5 {[%emt 0:01:20]} 30. Bg4 {[%emt 0:00:10]} Qg6 {[%emt 0:00:23]} 31. Bxc8 {[%emt 0:00:23]} Bf6 {[%emt 0:00:03]} 32. Bxb7 {[%emt 0:00:53]} Ne7 {[%emt 0:01:00]} 33. Bc6 {[%emt 0:03:57]} Rb8 {[%emt 0:00:23]} 34. b5 {[%emt 0:00:36]} Nf5 {[%emt 0:00:24]} 35. Ra2 {[%emt 0:01:49]} Be5 {[%emt 0:00:22]} 36. Bd7 {[%emt 0:01:08]} Nxe3 {[%emt 0:00:39]} 37. Qxe3 {[%emt 0:00:32]} f5 {[%emt 0:00:33]} 38. Rf1 {[%emt 0:01:51]} Rf8 {[%emt 0:00:38]} 39. Raf2 {[%emt 0:00:37]} f4 {[%emt 0:00:26]} 40. Rxf4 {[%emt 0:00:23]} Bxf4 {[%emt 0:00:32]} 41. Rxf4 {[%emt 0:00:32]} Rxf4 {[%emt 0:00:34]} 42. Qxf4 {[%emt 0:00:11]} Qh5 {[%emt 0:00:35]} 43. Qf5+ {[%emt 0:00:19]} Qxf5 {[%emt 0:00:10]} 44. Bxf5+ {[%emt 0:00:07]} g6 {[%emt 0:00:02]} 45. Bxe4 {[%emt 0:00:05]} Kg7 {[%emt 0:00:10]} 46. Kf2 {[%emt 0:00:04]} Kf6 {[%emt 0:00:03]} 47. bxa6 {[%emt 0:00:13]} g5 {[%emt 0:01:01]} 48. a7 {[%emt 0:00:07]} 1-0

[Event "Slovakian ECo-C Extraliga 2024-25"]
[Site "Slovakia"]
[Date "2025.02.15"]
[Round "5.6"]
[White "Csonka, Atilla"]
[Black "Elias, David"]
[Result "1-0"]
[Annotator "ChessBase"]
[ECO "B53"]
[WhiteElo "2279"]
[BlackElo "2238"]
[PlyCount "79"]
[EventDate "2024.09.12"]
[EventType "team-tourn"]
[EventCountry "SVK"]
[SourceTitle "playchess.com"]
[Source "ChessBase"]
[SourceQuality "1"]
[TimeControl "5400+30"]

1. e4 {[%emt 0:00:04]} c5 {[%emt 0:00:04]} 2. Nf3 {[%emt 0:00:07]} d6 {[%emt 0:00:04]} 3. d4 {[%emt 0:00:08]} cxd4 {[%emt 0:00:04]} 4. Qxd4 {[%emt 0:00:08]} Nf6 {[%emt 0:00:07]} 5. Bg5 {[%emt 0:00:32]} Nc6 {[%emt 0:02:25]} 6. Bb5 {[%emt 0:00:36]} Bd7 {[%emt 0:00:05]} 7. Qd3 {[%emt 0:01:41]} a6 {[%emt 0:05:16]} 8. Bxc6 {[%emt 0:00:34]} Bxc6 {[%emt 0:00:11]} 9. Nc3 {[%emt 0:00:08]} h6 {[%emt 0:00:06]} 10. Bxf6 {[%emt 0:03:57]} gxf6 {[%emt 0:00:03]} 11. Nd4 {[%emt 0:00:11]} Rg8 {[%emt 0:04:02]} 12. g3 {[%emt 0:00:45]} Bd7 {[%emt 0:04:36]} 13. Nf5 {[%emt 0:03:26]} b5 {[%emt 0:00:40]} 14. O-O-O {[%emt 0:01:35]} b4 {[%emt 0:06:22]} 15. Nd5 {[%emt 0:00:43]} e6 {[%emt 0:05:23]} 16. Rhe1 {[%emt 0:00:15]} Bb5 {[%emt 0:00:46]} 17. Qd4 {[%emt 0:02:23]} exd5 {[%emt 0:00:22]} 18. exd5+ {[%emt 0:00:13]} Kd7 {[%emt 0:00:04]} 19. f4 {[%emt 0:03:24]} Rc8 {[%emt 0:03:29]} 20. Qxb4 {[%emt 0:03:11]} Qc7 {[%emt 0:04:16]} 21. Qe4 {[%emt 0:04:22]} Qc4 {[%emt 0:09:30]} 22. Qxc4 {[%emt 0:00:53]} Rxc4 {[%emt 0:02:10]} 23. b3 {[%emt 0:00:09]} Rc7 {[%emt 0:00:12]} 24. a4 {[%emt 0:00:14]} Bxa4 {[%emt 0:00:03]} 25. bxa4 {[%emt 0:00:08]} Rc4 {[%emt 0:00:03]} 26. Kd2 {[%emt 0:00:20]} Rc5 {[%emt 0:01:08]} 27. Kc1 {[%emt 0:02:48]} Rc4 {[%emt 0:00:12]} 28. Kb2 {[%emt 0:00:45]} Rxa4 {[%emt 0:00:42]} 29. Kb3 {[%emt 0:00:08]} Ra5 {[%emt 0:00:07]} 30. c4 {[%emt 0:00:05]} Rc5 {[%emt 0:00:54]} 31. Ra1 {[%emt 0:00:58]} a5 {[%emt 0:00:05]} 32. Kc3 {[%emt 0:00:08]} h5 {[%emt 0:00:24]} 33. Rab1 {[%emt 0:00:48]} h4 {[%emt 0:00:58]} 34. Rb7+ {[%emt 0:00:25]} Rc7 {[%emt 0:00:20]} 35. Rb8 {[%emt 0:00:55]} hxg3 {[%emt 0:01:45]} 36. Ree8 {[%emt 0:02:58]} Rxc4+ {[%emt 0:00:56]} 37. Kxc4 {[%emt 0:00:04]} gxh2 {[%emt 0:00:20]} 38. Red8+ {[%emt 0:00:04]} Kc7 {[%emt 0:00:13]} 39. Nd4 {[%emt 0:00:03]} h1=Q {[%emt 0:00:26]} 40. Nb5# {[%emt 0:00:05]} 1-0

[Event "Slovakian ECo-C Extraliga 2024-25"]
[Site "Slovakia"]
[Date "2025.02.15"]
[Round "5.6"]
[White "Csonka, Atilla"]
[Black "Csonka, Atilla"]
[Result "*"]
[Annotator "NA"]
[ECO "B53"]
[WhiteElo "2279"]
[BlackElo "2279"]
[PlyCount "40"]
[EventDate "2024.09.12"]
[EventType "team-tourn"]
[EventCountry "SVK"]
[SourceTitle "playchess.com"]
[Source "ChessBase"]
[SourceQuality "1"]
[TimeControl "5400+30"]

1. e4 {[%emt 0:00:04]} c5 {[%emt 0:00:04]} 2. Nf3 {[%emt 0:00:07]} d6 {[%emt 0:00:04]} 3. d4 {[%emt 0:00:08]} cxd4 {[%emt 0:00:04]} 4. Qxd4 {[%emt 0:00:08]} Nf6 {[%emt 0:00:07]} 5. Bg5 {[%emt 0:00:32]} Nc6 {[%emt 0:02:25]} 6. Bb5 {[%emt 0:00:36]} Bd7 {[%emt 0:00:05]} 7. Qd3 {[%emt 0:01:41]} a6 {[%emt 0:05:16]} 8. Bxc6 {[%emt 0:00:34]} Bxc6 {[%emt 0:00:11]} 9. Nc3 {[%emt 0:00:08]} h6 {[%emt 0:00:06]} 10. Bxf6 {[%emt 0:03:57]} gxf6 {[%emt 0:00:03]} 11. Nd4 {[%emt 0:00:11]} Rg8 {[%emt 0:04:02]} 12. g3 {[%emt 0:00:45]} Bd7 {[%emt 0:04:36]} 13. Nf5 {[%emt 0:03:26]} b5 {[%emt 0:00:40]} 14. O-O-O {[%emt 0:01:35]} b4 {[%emt 0:06:22]} 15. Nd5 {[%emt 0:00:43]} e6 {[%emt 0:05:23]} 16. Rhe1 {[%emt 0:00:15]} Bb5 {[%emt 0:00:46]} 17. Qd4 {[%emt 0:02:23]} exd5 {[%emt 0:00:22]} 18. exd5+ {[%emt 0:00:13]} Kd7 {[%emt 0:00:04]} 19. f4 {[%emt 0:03:24]} Rc8 {[%emt 0:03:29]} 20. Qxb4 {[%emt 0:03:11]} Qc7 {[%emt 0:04:16]} *

[Event "Slovakian ECo-C Extraliga 2024-25"]
[Site "Slovakia"]
[Date "2025.02.15"]
[Round "5.6"]
[White "Meszaros, Casey Ryan"]
[Black "Kantorik, Marian"]
[Result "1/2-1/2"]
[Annotator "ChessBase"]
[ECO "A05"]
[WhiteElo "2003"]
[BlackElo "2171"]
[PlyCount "145"]
[EventDate "2024.09.12"]
[EventType "team-tourn"]
[EventCountry "SVK"]
[SourceTitle "playchess.com"]
[Source "ChessBase"]
[SourceQuality "1"]
[TimeControl "5400+30"]

1. Nf3 {[%emt 0:01:18]} Nf6 {[%emt 0:00:29]} 2. e3 {[%emt 0:00:19]} d5 {[%emt 0:02:09]} 3. c4 {[%emt 0:00:13]} c5 {[%emt 0:01:05]} 4. cxd5 {[%emt 0:04:25]} Nxd5 {[%emt 0:00:23]} 5. Bc4 {[%emt 0:07:44]} e6 {[%emt 0:00:58]} 6. O-O {[%emt 0:00:52]} Be7 {[%emt 0:00:41]} 7. Nc3 {[%emt 0:05:03]} O-O {[%emt 0:01:05]} 8. Rb1 {[%emt 0:13:39]} Nc6 {[%emt 0:01:15]} 9. b3 {[%emt 0:06:54]} a6 {[%emt 0:03:05]} 10. Bb2 {[%emt 0:04:34]} b5 {[%emt 0:00:33]} 11. Bxd5 {[%emt 0:13:45]} exd5 {[%emt 0:00:16]} 12. d4 {[%emt 0:06:31]} c4 13. e4 {[%emt 0:02:51]} dxe4 {[%emt 0:03:33]} 14. Nxe4 {[%emt 0:00:46]} Bf5 {[%emt 0:00:46]} 15. Re1 {[%emt 0:01:03]} Bb4 {[%emt 0:15:02]} 16. Re3 {[%emt 0:02:36]} Re8 {[%emt 0:02:40]} 17. Qe2 {[%emt 0:05:18]} c3 {[%emt 0:10:25]} 18. Ba1 {[%emt 0:02:16]} Rc8 {[%emt 0:11:13]} 19. Rc1 {[%emt 0:04:05]} Bxe4 {[%emt 0:09:23]} 20. Rxe4 {[%emt 0:00:23]} Rxe4 {[%emt 0:00:15]} 21. Qxe4 {[%emt 0:00:10]} Ne7 {[%emt 0:00:37]} 22. Ng5 {[%emt 0:07:07]} Ng6 {[%emt 0:01:39]} 23. h4 {[%emt 0:01:40]} Qe7 {[%emt 0:09:12]} 24. Qxe7 {[%emt 0:05:05]} Nxe7 {[%emt 0:00:06]} 25. a3 {[%emt 0:00:58]} Bxa3 {[%emt 0:00:55]} 26. Rxc3 {[%emt 0:00:12]} Rxc3 {[%emt 0:00:30]} 27. Bxc3 {[%emt 0:00:01]} Nd5 {[%emt 0:00:32]} 28. Bd2 {[%emt 0:01:12]} Bb2 {[%emt 0:05:27]} 29. Nf3 {[%emt 0:00:48]} Bc3 {[%emt 0:00:40]} 30. Bxc3 {[%emt 0:01:09]} Nxc3 {[%emt 0:00:05]} 31. Kf1 {[%emt 0:00:27]} f6 {[%emt 0:01:32]} 32. Ke1 {[%emt 0:00:38]} Kf7 {[%emt 0:00:07]} 33. Kd2 {[%emt 0:00:28]} Nd5 {[%emt 0:00:06]} 34. Ne1 {[%emt 0:00:43]} Nb4 {[%emt 0:01:29]} 35. g3 {[%emt 0:01:23]} Ke6 {[%emt 0:00:12]} 36. Ng2 {[%emt 0:00:42]} a5 {[%emt 0:04:47]} 37. Nf4+ {[%emt 0:00:41]} Kf5 {[%emt 0:00:27]} 38. f3 {[%emt 0:00:40]} g5 {[%emt 0:00:33]} 39. Ng2 {[%emt 0:00:35]} h5 {[%emt 0:00:34]} 40. Ne3+ {[%emt 0:00:24]} Ke6 {[%emt 0:00:15]} 41. Nd1 {[%emt 0:00:00]} gxh4 {[%emt 0:00:00]} 42. gxh4 {[%emt 0:00:00]} Nd5 {[%emt 0:00:00]} 43. Nf2 {[%emt 0:00:00]} Nf4 {[%emt 0:00:00]} 44. Ne4 {[%emt 0:00:00]} Ng2 {[%emt 0:00:00]} 45. d5+ {[%emt 0:00:00]} Kf7 {[%emt 0:00:00]} 46. Nd6+ {[%emt 0:00:00]} Ke7 {[%emt 0:00:00]} 47. Nxb5 {[%emt 0:00:00]} Nxh4 {[%emt 0:00:00]} 48. Ke3 {[%emt 0:00:00]} Nf5+ {[%emt 0:00:00]} 49. Kf4 {[%emt 0:00:00]} h4 {[%emt 0:00:00]} 50. Kg4 {[%emt 0:00:00]} Kd7 {[%emt 0:00:00]} 51. Na3 {[%emt 0:00:00]} Nd4 {[%emt 0:00:00]} 52. Nc4 {[%emt 0:00:00]} Nxb3 {[%emt 0:00:00]} 53. Kxh4 {[%emt 0:00:08]} Ke7 {[%emt 0:00:00]} 54. Kg4 {[%emt 0:00:27]} a4 {[%emt 0:00:00]} 55. d6+ {[%emt 0:01:21]} Ke6 {[%emt 0:00:00]} 56. f4 {[%emt 0:02:27]} Nd4 {[%emt 0:00:00]} 57. f5+ {[%emt 0:01:27]} Nxf5 {[%emt 0:00:00]} 58. d7 {[%emt 0:01:12]} Nh6+ {[%emt 0:00:00]} 59. Kf4 {[%emt 0:01:07]} Nf7 {[%emt 0:00:01]} 60. Ke4 {[%emt 0:00:42]} Nd8 {[%emt 0:00:33]} 61. Kf4 {[%emt 0:00:39]} Nb7 {[%emt 0:01:25]} 62. Kg4 {[%emt 0:00:28]} Ke7 {[%emt 0:00:53]} 63. Kf5 {[%emt 0:01:28]} Nd6+ {[%emt 0:00:42]} 64. Nxd6 {[%emt 0:00:06]} a3 {[%emt 0:00:11]} 65. Nb7 {[%emt 0:00:14]} Kxd7 {[%emt 0:00:37]} 66. Nc5+ {[%emt 0:00:58]} Kd6 {[%emt 0:04:43]} 67. Ne4+ {[%emt 0:00:14]} Kd5 {[%emt 0:00:39]} 68. Nc3+ {[%emt 0:00:14]} Kc4 {[%emt 0:01:26]} 69. Na2 {[%emt 0:00:13]} Kb3 {[%emt 0:00:56]} 70. Nc1+ {[%emt 0:00:14]} Kc2 {[%emt 0:01:42]} 71. Na2 {[%emt 0:00:10]} Kb2 {[%emt 0:00:14]} 72. Nb4 {[%emt 0:00:06]} Kb3 {[%emt 0:00:04]} 73. Nd3 {[%emt 0:00:10]} 1/2-1/2

[Event "Slovakian ECo-C Extraliga 2024-25"]
[Site "Slovakia"]
[Date "2025.02.15"]
[Round "5.6"]
[White "Kopecny, Filip"]
[Black "Toth, Ervin"]
[Result "1-0"]
[Annotator "ChessBase"]
[ECO "B06"]
[WhiteElo "1970"]
[BlackElo "2393"]
[PlyCount "93"]
[EventDate "2024.09.12"]
[EventType "team-tourn"]
[EventCountry "SVK"]
[SourceTitle "playchess.com"]
[Source "ChessBase"]
[SourceQuality "1"]
[TimeControl "5400+30"]

1. e4 {[%emt 0:00:03]} g6 {[%emt 0:00:26]} 2. d4 {[%emt 0:00:31]} Bg7 {[%emt 0:00:05]} 3. Nf3 {[%emt 0:00:54]} d6 {[%emt 0:00:15]} 4. h3 {[%emt 0:00:28]} Nf6 {[%emt 0:01:17]} 5. Bd3 {[%emt 0:01:05]} O-O {[%emt 0:00:50]} 6. O-O {[%emt 0:00:38]} c6 {[%emt 0:03:24]} 7. c3 {[%emt 0:02:41]} Nbd7 {[%emt 0:00:41]} 8. Bf4 {[%emt 0:01:41]} Nh5 {[%emt 0:02:38]} 9. Bh2 {[%emt 0:00:41]} e5 {[%emt 0:00:31]} 10. Nbd2 {[%emt 0:03:08]} Qe7 {[%emt 0:06:10]} 11. Qe2 {[%emt 0:03:34]} Rd8 {[%emt 0:06:38]} 12. Rad1 {[%emt 0:01:00]} Nf8 {[%emt 0:12:04]} 13. Qe3 {[%emt 0:11:19]} b5 {[%emt 0:14:23]} 14. g4 {[%emt 0:00:55]} exd4 {[%emt 0:00:53]} 15. Nxd4 {[%emt 0:00:52]} Bxd4 {[%emt 0:01:40]} 16. cxd4 {[%emt 0:00:29]} Ng7 {[%emt 0:00:43]} 17. Rfe1 {[%emt 0:01:07]} a6 {[%emt 0:03:20]} 18. Nb3 {[%emt 0:07:20]} Ra7 {[%emt 0:05:11]} 19. Bf1 {[%emt 0:02:10]} Re8 {[%emt 0:03:52]} 20. Bg2 {[%emt 0:01:01]} Qd8 {[%emt 0:02:56]} 21. Qc3 {[%emt 0:02:00]} Bb7 {[%emt 0:11:06]} 22. Na5 {[%emt 0:02:00]} Qd7 {[%emt 0:01:46]} 23. Rc1 {[%emt 0:02:18]} Rc8 {[%emt 0:00:58]} 24. Qa3 {[%emt 0:00:52]} Ne8 {[%emt 0:00:08]} 25. Qe3 {[%emt 0:02:42]} Ba8 {[%emt 0:01:01]} 26. b4 {[%emt 0:00:56]} Rac7 {[%emt 0:03:59]} 27. Nb3 {[%emt 0:01:19]} Qd8 {[%emt 0:00:57]} 28. Rc3 {[%emt 0:04:27]} Re7 {[%emt 0:00:30]} 29. Qd2 {[%emt 0:02:25]} Nd7 {[%emt 0:01:30]} 30. Rec1 {[%emt 0:00:48]} Nb6 {[%emt 0:00:11]} 31. Na5 {[%emt 0:01:14]} Qd7 {[%emt 0:00:15]} 32. R3c2 {[%emt 0:02:20]} Nf6 {[%emt 0:03:00]} 33. Qf4 {[%emt 0:00:54]} Ne8 {[%emt 0:00:29]} 34. g5 {[%emt 0:02:10]} d5 {[%emt 0:01:34]} 35. Bf3 {[%emt 0:02:06]} Ng7 {[%emt 0:00:27]} 36. Bg4 {[%emt 0:01:06]} Ne6 {[%emt 0:00:07]} 37. Qf6 {[%emt 0:00:15]} h5 {[%emt 0:01:49]} 38. gxh6 {[%emt 0:10:45]} Kh7 {[%emt 0:00:04]} 39. Nxc6 {[%emt 0:02:55]} Bxc6 {[%emt 0:06:15]} 40. Rxc6 {[%emt 0:00:16]} Rxc6 {[%emt 0:01:00]} 41. Rxc6 {[%emt 0:01:18]} Qxc6 {[%emt 0:00:35]} 42. Bxe6 {[%emt 0:01:05]} Qc1+ {[%emt 0:01:12]} 43. Kg2 {[%emt 0:00:09]} fxe6 {[%emt 0:00:06]} 44. Qxe7+ {[%emt 0:00:09]} Kxh6 {[%emt 0:00:17]} 45. Qh4+ {[%emt 0:00:07]} Kg7 {[%emt 0:00:42]} 46. Be5+ {[%emt 0:00:07]} Kf8 {[%emt 0:00:45]} 47. Qf6+ {[%emt 0:00:12]} 1-0

[Event "Slovakian ECo-C Extraliga 2024-25"]
[Site "Slovakia"]
[Date "2025.02.15"]
[Round "5.7"]
[White "Farkas, Gabor"]
[Black "Pericka, Tomas"]
[Result "1-0"]
[Annotator "ChessBase"]
[ECO "A40"]
[WhiteElo "2314"]
[BlackElo "2058"]
[PlyCount "70"]
[EventDate "2024.09.12"]
[EventType "team-tourn"]
[EventCountry "SVK"]
[SourceTitle "playchess.com"]
[Source "ChessBase"]
[SourceQuality "1"]
[TimeControl "5400+30"]

1. d4 {[%emt 0:00:16]} g6 {[%emt 0:01:20]} 2. c4 {[%emt 0:00:09]} Bg7 {[%emt 0:00:05]} 3. Nc3 {[%emt 0:00:12]} c5 {[%emt 0:01:45]} 4. d5 {[%emt 0:00:07]} Nf6 {[%emt 0:02:15]} 5. e4 {[%emt 0:00:51]} d6 {[%emt 0:00:15]} 6. Be2 {[%emt 0:01:15]} e6 {[%emt 0:08:10]} 7. Bg5 {[%emt 0:02:33]} h6 {[%emt 0:04:15]} 8. Bf4 {[%emt 0:01:12]} exd5 {[%emt 0:03:41]} 9. exd5 {[%emt 0:00:17]} O-O {[%emt 0:01:30]} 10. Nf3 {[%emt 0:00:30]} Re8 {[%emt 0:03:56]} 11. O-O {[%emt 0:00:25]} Nh5 {[%emt 0:00:52]} 12. Be3 {[%emt 0:01:13]} Nd7 {[%emt 0:01:04]} 13. Nd2 {[%emt 0:13:28]} Nhf6 {[%emt 0:02:21]} 14. Bf4 {[%emt 0:00:38]} Ne5 {[%emt 0:02:08]} 15. Bg3 {[%emt 0:08:10]} Bf5 {[%emt 0:03:29]} 16. Re1 {[%emt 0:05:43]} Qd7 {[%emt 0:06:48]} 17. Bf1 {[%emt 0:06:56]} Nd3 {[%emt 0:10:40]} 18. Bxd3 {[%emt 0:02:58]} Rxe1+ {[%emt 0:02:05]} 19. Qxe1 {[%emt 0:00:05]} Bxd3 {[%emt 0:00:07]} 20. Qe3 {[%emt 0:00:08]} Bf5 {[%emt 0:00:46]} 21. Qf4 {[%emt 0:01:23]} Rd8 {[%emt 0:04:12]} 22. h3 {[%emt 0:20:10]} a6 {[%emt 0:08:06]} 23. a4 {[%emt 0:06:49]} Nh5 {[%emt 0:03:31]} 24. Qxd6 {[%emt 0:03:53]} Qxd6 {[%emt 0:03:34]} 25. Bxd6 {[%emt 0:00:14]} Rxd6 {[%emt 0:00:10]} 26. g4 {[%emt 0:00:03]} Nf4 {[%emt 0:04:12]} 27. gxf5 {[%emt 0:00:51]} gxf5 {[%emt 0:04:29]} 28. Re1 {[%emt 0:11:15]} Bd4 {[%emt 0:02:43]} 29. Re8+ {[%emt 0:02:33]} Kg7 {[%emt 0:00:36]} 30. Ne2 {[%emt 0:04:02]} Rg6+ {[%emt 0:03:06]} 31. Kf1 {[%emt 0:01:42]} Nxh3 {[%emt 0:01:10]} 32. Nf3 {[%emt 0:02:31]} Bxf2 {[%emt 0:03:58]} 33. Ne5 {[%emt 0:00:37]} Rb6 {[%emt 0:00:31]} 34. Kg2 {[%emt 0:00:21]} Rxb2 {[%emt 0:01:07]} 35. Nd3 {[%emt 0:00:13]} Rd2 1-0

[Event "Slovakian ECo-C Extraliga 2024-25"]
[Site "Slovakia"]
[Date "2025.02.15"]
[Round "5.7"]
[White "Garban, Mario"]
[Black "Striskova, Lucia"]
[Result "1-0"]
[Annotator "ChessBase"]
[ECO "C56"]
[WhiteElo "2181"]
[BlackElo "2074"]
[PlyCount "141"]
[EventDate "2024.09.12"]
[EventType "team-tourn"]
[EventCountry "SVK"]
[SourceTitle "playchess.com"]
[Source "ChessBase"]
[SourceQuality "1"]
[TimeControl "5400+30"]

1. e4 {[%emt 0:00:03]} e5 {[%emt 0:02:25]} 2. Bc4 {[%emt 0:01:13]} Nf6 {[%emt 0:01:14]} 3. d4 {[%emt 0:03:21]} exd4 {[%emt 0:00:34]} 4. Nf3 {[%emt 0:00:17]} Nc6 {[%emt 0:02:00]} 5. O-O {[%emt 0:00:36]} Nxe4 {[%emt 0:00:55]} 6. Re1 {[%emt 0:01:29]} d5 {[%emt 0:00:09]} 7. Bxd5 {[%emt 0:00:24]} Qxd5 {[%emt 0:00:07]} 8. Nc3 {[%emt 0:00:08]} Qh5 {[%emt 0:00:09]} 9. Nxe4 {[%emt 0:01:20]} Be6 {[%emt 0:00:30]} 10. Nxd4 {[%emt 0:02:03]} Qxd1 {[%emt 0:00:50]} 11. Rxd1 {[%emt 0:00:08]} O-O-O {[%emt 0:00:56]} 12. Be3 {[%emt 0:00:17]} Nxd4 {[%emt 0:00:10]} 13. Rxd4 {[%emt 0:05:32]} Be7 {[%emt 0:00:32]} 14. a4 {[%emt 0:28:40]} a6 {[%emt 0:04:34]} 15. Re1 {[%emt 0:03:01]} Rhe8 {[%emt 0:02:12]} 16. Rxd8+ {[%emt 0:00:50]} Rxd8 {[%emt 0:01:15]} 17. Bc5 {[%emt 0:00:49]} Bxc5 {[%emt 0:07:16]} 18. Nxc5 {[%emt 0:00:13]} Rd2 {[%emt 0:00:06]} 19. Nxe6 {[%emt 0:00:17]} fxe6 {[%emt 0:00:06]} 20. Rc1 {[%emt 0:00:11]} Kd7 {[%emt 0:00:18]} 21. Kf1 {[%emt 0:00:13]} Kc6 {[%emt 0:02:47]} 22. Ke1 {[%emt 0:00:33]} Rd4 {[%emt 0:02:05]} 23. b3 {[%emt 0:00:13]} Kc5 {[%emt 0:04:23]} 24. c3 {[%emt 0:01:19]} Re4+ {[%emt 0:03:14]} 25. Kd2 {[%emt 0:00:40]} Re5 {[%emt 0:06:56]} 26. f4 {[%emt 0:08:54]} Rf5 {[%emt 0:03:36]} 27. Ke3 {[%emt 0:00:53]} e5 {[%emt 0:05:54]} 28. Rf1 {[%emt 0:04:40]} exf4+ {[%emt 0:05:59]} 29. Rxf4 {[%emt 0:00:12]} Re5+ {[%emt 0:02:49]} 30. Kd3 {[%emt 0:02:03]} Rg5 {[%emt 0:03:53]} 31. g3 {[%emt 0:03:16]} Kd6 {[%emt 0:00:36]} 32. Rf7 {[%emt 0:00:42]} b5 {[%emt 0:12:42]} 33. a5 {[%emt 0:00:36]} Rg6 {[%emt 0:00:05]} 34. Ke4 {[%emt 0:01:05]} Re6+ {[%emt 0:05:10]} 35. Kd3 {[%emt 0:08:11]} Re7 {[%emt 0:03:32]} 36. Rf8 {[%emt 0:07:35]} Kc6 {[%emt 0:01:54]} 37. Ra8 {[%emt 0:03:04]} Kb7 {[%emt 0:00:14]} 38. Rd8 {[%emt 0:00:20]} Kc6 {[%emt 0:03:02]} 39. Rg8 {[%emt 0:03:54]} Rd7+ {[%emt 0:07:05]} 40. Ke4 {[%emt 0:00:38]} Re7+ {[%emt 0:00:25]} 41. Kf4 {[%emt 0:05:09]} Rf7+ {[%emt 0:00:23]} 42. Ke3 {[%emt 0:05:34]} Re7+ {[%emt 0:00:12]} 43. Kd3 {[%emt 0:00:46]} Rd7+ {[%emt 0:00:08]} 44. Kc2 {[%emt 0:00:27]} Rf7 {[%emt 0:04:33]} 45. b4 {[%emt 0:00:00]} Kd5 {[%emt 0:00:00]} 46. Kb3 {[%emt 0:00:00]} c5 {[%emt 0:00:00]} 47. Rd8+ {[%emt 0:00:00]} Kc6 {[%emt 0:00:00]} 48. Rc8+ {[%emt 0:00:00]} Rc7 {[%emt 0:00:00]} 49. Rb8 {[%emt 0:00:00]} c4+ {[%emt 0:00:00]} 50. Kc2 {[%emt 0:00:00]} Kd5 {[%emt 0:00:00]} 51. Kd2 {[%emt 0:00:00]} Rf7 {[%emt 0:00:00]} 52. Rd8+ {[%emt 0:00:00]} Ke4 {[%emt 0:00:00]} 53. Ke2 {[%emt 0:00:00]} Rf6 {[%emt 0:01:34]} 54. Rd7 {[%emt 0:00:00]} Rg6 {[%emt 0:02:04]} 55. Re7+ {[%emt 0:00:00]} Kd5 {[%emt 0:00:23]} 56. Ke3 {[%emt 0:00:00]} Re6+ {[%emt 0:02:02]} 57. Rxe6 {[%emt 0:00:00]} Kxe6 {[%emt 0:00:04]} 58. Ke4 {[%emt 0:03:15]} g6 {[%emt 0:00:26]} 59. Kf4 {[%emt 0:01:33]} Kf6 {[%emt 0:00:10]} 60. h4 {[%emt 0:00:09]} h5 {[%emt 0:01:43]} 61. g4 {[%emt 0:00:53]} hxg4 {[%emt 0:00:07]} 62. Kxg4 {[%emt 0:00:09]} Kf7 {[%emt 0:00:16]} 63. Kf3 {[%emt 0:01:13]} Kf6 {[%emt 0:02:29]} 64. Kf4 {[%emt 0:00:10]} Ke6 {[%emt 0:00:09]} 65. Ke4 {[%emt 0:00:11]} Kd6 {[%emt 0:00:10]} 66. Kd4 {[%emt 0:00:01]} Ke6 {[%emt 0:01:19]} 67. Kc5 {[%emt 0:00:13]} Ke5 {[%emt 0:00:36]} 68. Kb6 {[%emt 0:00:07]} Kd6 {[%emt 0:00:26]} 69. Kxa6 {[%emt 0:00:40]} Kc6 {[%emt 0:00:04]} 70. Ka7 {[%emt 0:00:07]} Kc7 {[%emt 0:00:09]} 71. a6 {[%emt 0:00:09]} 1-0